bitfinex/quotes_SOLUSD_20260202
["timestamp","ask_amount","ask_price","bid_price","bid_amount"]
[1770043923499,4.5,104.52,104.47,26.6]
[1770043923707,4.5,104.5,104.43,36.17514969]
[1770043923905,4.5,104.5,104.46,8.8463841]
[1770043924319,4.5,104.49,104.44,8.8463841]
[1770043924614,4.5,104.49,104.43,26.6]
[1770043924615,4.5,104.49,104.43,9.57576036]
[1770043924823,4.5,104.48,104.44,8.8463841]
[1770043925022,4.5,104.47,104.38,26.6]
[1770043925198,4.5,104.45,104.4,8.8463841]
[1770043925404,4.5,104.46,104.42,8.8463841]
[1770043925915,4.5,104.48,104.39,98.11530422]
[1770043926131,4.5,104.48,104.45,8.8463841]
[1770043926312,13.3463841,104.5,104.45,8.8463841]
[1770043926510,4.5,104.5,104.46,8.8463841]
[1770043926809,4.5,104.48,104.44,8.8463841]
[1770043927115,4.5,104.48,104.43,35.4463841]
[1770043927116,4.5,104.46,104.43,35.4463841]
[1770043927323,4.5,104.48,104.44,8.8463841]
[1770043927815,4.5,104.45,104.4,0.14216157]
[1770043928017,4.5,104.5,104.44,8.8463841]
[1770043928202,4.5,104.49,104.45,8.8463841]
[1770043928398,4.5,104.48,104.41,4.27527085]
[1770043928610,4.5,104.48,104.43,8.8463841]
[1770043928813,4.5,104.47,104.42,8.8463841]
[1770043929007,4.5,104.46,104.39,114.62292753]
[1770043929220,13.3463841,104.48,104.43,8.8463841]
[1770043929408,4.5,104.47,104.43,8.8463841]
[1770043929616,4.5,104.47,104.42,8.8463841]
[1770043929912,4.5,104.47,104.41,9.57758231]
[1770043930111,4.5,104.47,104.4,24.22952154]
[1770043930112,4.5,104.47,104.43,8.8463841]
[1770043930419,4.5,104.44,104.39,100.76832919]
[1770043930626,4.5,104.44,104.39,109.61471329]
[1770043930803,13.3463841,104.44,104.39,109.61471329]
[1770043930999,8.8463841,104.45,104.39,109.61471329]
[1770043931204,4.5,104.45,104.42,8.8463841]
[1770043931434,4.5,104.45,104.4,0.28432314]
[1770043931725,4.5,104.45,104.42,8.8463841]
[1770043932324,4.5,104.45,104.41,8.8463841]
[1770043932997,8.8463841,104.45,104.4,8.8463841]
[1770043933198,4.5,104.44,104.4,8.8463841]
[1770043933405,4.27527085,104.48,104.41,8.8463841]
[1770043933406,4.5,104.46,104.41,8.8463841]
[1770043933625,4.5,104.46,104.42,8.8463841]
[1770043934004,4.5,104.46,104.41,8.8463841]
[1770043934506,4.5,104.45,104.4,8.8463841]
[1770043934703,4.5,104.44,104.4,8.8463841]
[1770043935523,4.5,104.43,104.39,69.61471329]
[1770043935724,4.5,104.41,104.37,8.8463841]
[1770043936224,13.3463841,104.38,104.3,36.18749031]
[1770043936519,4.5,104.4,104.36,8.8463841]
[1770043936726,4.5,104.4,104.34,8.8463841]
[1770043936727,4.5,104.39,104.34,8.8463841]
[1770043937324,4.5,104.39,104.35,8.8463841]
[1770043937525,4.5,104.37,104.33,8.8463841]
[1770043937732,4.5,104.37,104.32,8.8463841]
[1770043937910,4.5,104.37,104.31,9.58672661]
[1770043937911,4.5,104.37,104.33,8.8463841]
[1770043938118,4.5,104.37,104.32,8.8463841]
[1770043938316,4.5,104.37,104.31,8.8463841]
[1770043938317,4.5,104.36,104.31,8.8463841]
[1770043938619,4.5,104.36,104.32,8.8463841]
[1770043938942,4.5,104.36,104.33,8.8463841]
[1770043939130,4.5,104.36,104.32,8.8463841]
[1770043940608,4.5,104.35,104.3,8.8463841]
[1770043941440,4.5,104.33,104.29,0.2]
[1770043942013,13.12165495,104.37,104.27,26.62]
[1770043942014,4.4,104.31,104.27,26.62]
[1770043942622,4.4,104.29,104.24,8.8463841]
[1770043942825,4.4,104.29,104.25,8.8463841]
[1770043943133,4.4,104.29,104.26,8.8463841]
[1770043943337,4.4,104.29,104.25,8.8463841]
[1770043944043,4.4,104.28,104.23,8.8463841]
[1770043944227,4.4,104.27,104.22,35.4663841]
[1770043944411,4.4,104.27,104.23,8.8463841]
[1770043944621,4.4,104.25,104.2,8.8463841]
[1770043944938,4.4,104.22,104.18,8.8463841]
[1770043945133,8.8463841,104.23,104.18,8.8463841]
[1770043945535,13.2463841,104.23,104.18,8.8463841]
[1770043946235,13.2463841,104.23,104.17,36.41960142]
[1770043946236,13.2463841,104.25,104.2,8.8463841]
[1770043946418,4.4,104.25,104.2,8.8463841]
[1770043946614,4.4,104.25,104.21,8.8463841]
[1770043947325,4.4,104.27,104.22,8.8463841]
[1770043947530,13.2463841,104.28,104.23,8.8463841]
[1770043948035,4.4,104.28,104.24,8.8463841]
[1770043948539,4.4,104.29,104.25,8.8463841]
[1770043949439,4.4,104.28,104.24,8.8463841]
[1770043949950,4.4,104.29,104.25,8.8463841]
[1770043950237,13.2463841,104.29,104.24,8.8463841]
[1770043950736,4.4,104.26,104.22,35.4863841]
[1770043950937,4.4,104.26,104.21,4.27527085]
[1770043950938,4.4,104.25,104.21,8.8463841]
[1770043951341,4.4,104.25,104.22,8.8463841]
[1770043951656,4.4,104.29,104.24,8.8463841]
[1770043951833,4.4,104.29,104.25,8.8463841]
[1770043952228,4.4,104.28,104.24,8.8463841]
[1770043952844,4.4,104.26,104.22,8.8463841]
[1770043953432,4.4,104.27,104.23,8.8463841]
[1770043953729,4.4,104.27,104.22,9.59499311]
[1770043953965,4.4,104.27,104.23,8.8463841]
[1770043954126,4.4,104.29,104.23,8.8463841]
[1770043954325,4.4,104.29,104.25,8.8463841]
[1770043954525,4.4,104.31,104.27,8.84954642]
[1770043954722,4.4,104.33,104.29,8.84954642]
[1770043954935,4.4,104.33,104.3,8.84954642]
[1770043955136,4.4,104.33,104.27,0.48432314]
[1770043955322,4.4,104.33,104.29,8.84954642]
[1770043956446,4.4,104.37,104.32,9.04954642]
[1770043956639,4.4,104.39,104.34,8.84954642]
[1770043956945,4.4,104.37,104.33,8.84954642]
[1770043957125,4.4,104.39,104.36,8.84954642]
[1770043957326,4.4,104.39,104.33,0.48432314]
[1770043957327,6.16085736,104.4,104.38,8.84954642]
[1770043957522,4.5,104.45,104.39,8.84954642]
[1770043957728,4.5,104.45,104.41,8.84954642]
[1770043958026,4.5,104.43,104.37,13.85625963]
[1770043958228,13.34954642,104.43,104.38,8.84954642]
[1770043958448,4.5,104.42,104.38,8.84954642]
[1770043958634,4.5,104.42,104.39,8.84954642]
[1770043958950,4.5,104.44,104.4,8.84954642]
[1770043959150,4.5,104.43,104.39,8.84954642]
[1770043959530,13.34954642,104.45,104.4,8.84954642]
[1770043959743,4.5,104.45,104.4,8.84954642]
[1770043960050,13.34954642,104.43,104.38,8.84954642]
[1770043960347,4.5,104.42,104.38,8.84954642]
[1770043960536,4.5,104.42,104.36,8.84954642]
[1770043960537,4.5,104.4,104.36,8.84954642]
[1770043960944,4.5,104.42,104.37,8.84954642]
[1770043961146,4.5,104.42,104.38,8.84954642]
[1770043962455,25.84,104.46,104.4,8.84954642]
[1770043962644,25.84,104.46,104.41,8.84954642]
[1770043962645,4.5,104.46,104.41,8.84954642]
[1770043962831,4.5,104.46,104.38,0.28432314]
[1770043963148,4.5,104.44,104.4,8.84954642]
[1770043963353,4.5,104.43,104.38,8.84954642]
[1770043963748,13.34954642,104.43,104.38,8.84954642]
[1770043963949,13.34954642,104.43,104.36,9.58183819]
[1770043963950,4.5,104.41,104.36,8.84954642]
[1770043964159,4.5,104.38,104.34,35.48954642]
[1770043964347,4.5,104.38,104.34,26.64]
[1770043964348,4.5,104.37,104.34,26.64]
[1770043964935,13.34954642,104.37,104.34,26.64]
[1770043965252,8.84954642,104.42,104.36,8.84954642]
[1770043965453,4.5,104.44,104.4,8.84954642]
[1770043965765,4.5,104.46,104.42,8.84954642]
[1770043966636,4.5,104.48,104.44,8.84954642]
[1770043966834,4.5,104.48,104.41,9.57754149]
[1770043967029,4.5,104.47,104.42,8.84954642]
[1770043967656,4.5,104.46,104.4,0.28432314]
[1770043967830,8.84954642,104.47,104.39,4.27527085]
[1770043967831,4.5,104.45,104.41,8.84954642]
[1770043968036,4.5,104.45,104.42,8.84954642]
[1770043968259,4.5,104.45,104.4,0.28432314]
[1770043968260,4.5,104.45,104.4,8.84954642]
[1770043968556,4.5,104.43,104.38,8.84954642]
[1770043968750,4.5,104.43,104.4,8.84954642]
[1770043968968,4.5,104.45,104.4,8.84954642]
[1770043969157,4.5,104.45,104.42,8.84954642]
[1770043969457,4.5,104.44,104.39,8.84954642]
[1770043969653,4.5,104.43,104.39,8.84954642]
[1770043970557,4.5,104.43,104.4,8.84954642]
[1770043970854,4.5,104.45,104.41,8.84954642]
[1770043971031,4.5,104.43,104.39,8.84954642]
[1770043971231,4.5,104.43,104.38,8.84954642]
[1770043971435,4.5,104.42,104.37,35.48954642]
[1770043971635,4.5,104.41,104.37,35.48954642]
[1770043971831,4.5,104.41,104.37,26.64]
[1770043972036,13.34954642,104.39,104.33,9.58430373]
[1770043972254,4.5,104.4,104.36,8.84954642]
[1770043972443,4.5,104.4,104.35,8.84954642]
[1770043972851,4.5,104.39,104.35,8.84954642]
[1770043973057,4.5,104.37,104.32,45.0548995]
[1770043973861,4.5,104.41,104.35,8.84954642]
[1770043974163,4.5,104.39,104.35,8.84954642]
[1770043975267,8.84954642,104.41,104.35,8.84954642]
[1770043975452,8.84954642,104.45,104.39,13.00513066]
[1770043975766,8.84954642,104.46,104.41,8.84954642]
[1770043975954,8.84954642,104.47,104.41,18.42711984]
[1770043976141,8.84954642,104.46,104.41,8.84954642]
[1770043976491,8.84954642,104.47,104.41,18.42700986]
[1770043976638,8.84954642,104.47,104.42,8.84954642]
[1770043976833,5.99503128,104.49,104.44,8.84954642]
[1770043976834,14.8445777,104.49,104.44,8.84954642]
[1770043977037,14.8445777,104.49,104.43,8.84954642]
[1770043977267,14.8445777,104.49,104.44,8.84954642]
[1770043977457,4.10375859,104.52,104.48,8.84954642]
[1770043977757,4.10375859,104.52,104.5,8.84954642]
[1770043978343,4.10375859,104.54,104.51,8.84954642]
[1770043978558,4.10375859,104.54,104.49,8.84954642]
[1770043979334,4.10375859,104.52,104.47,8.84954642]
[1770043979943,4.10375859,104.52,104.48,8.84954642]
[1770043980143,4.10375859,104.52,104.47,8.84954642]
[1770043980350,4.10375859,104.51,104.46,8.84954642]
[1770043980551,4.10375859,104.51,104.47,8.84954642]
[1770043980957,4.10375859,104.47,104.41,9.57747253]
[1770043981275,4.10375859,104.47,104.43,8.84954642]
[1770043981775,4.10375859,104.47,104.44,8.84954642]
[1770043981973,4.10375859,104.46,104.41,8.84954642]
[1770043982358,4.10375859,104.45,104.4,8.84954642]
[1770043983266,4.10375859,104.45,104.41,8.84954642]
[1770043983573,12.95330501,104.45,104.38,26.95389038]
[1770043983774,4.10375859,104.44,104.4,8.84954642]
[1770043984078,4.10375859,104.43,104.38,26.22348477]
[1770043984274,8.84954642,104.44,104.38,26.22348477]
[1770043984275,4.10375859,104.42,104.38,26.22348477]
[1770043984576,4.10375859,104.42,104.38,8.84954642]
[1770043984779,4.10375859,104.42,104.37,8.84954642]
[1770043984981,4.10375859,104.4,104.35,8.84954642]
[1770043985350,4.10375859,104.4,104.36,8.84954642]
[1770043985676,4.10375859,104.4,104.35,8.84954642]
[1770043985860,4.10375859,104.39,104.35,8.84954642]
[1770043986458,4.10375859,104.39,104.34,8.84954642]
[1770043986659,4.10375859,104.37,104.32,8.84954642]
[1770043986980,4.10375859,104.37,104.33,8.84954642]
[1770043987274,4.10375859,104.37,104.34,8.84954642]
[1770043987454,4.10375859,104.38,104.34,8.84954642]
[1770043987652,4.10375859,104.38,104.33,8.84954642]
[1770043988282,4.10375859,104.36,104.3,21.54830106]
[1770043988489,4.10375859,104.36,104.31,8.84954642]
[1770043989283,4.10375859,104.36,104.32,8.84954642]
[1770043989984,4.55959399,104.37,104.3,17.39271682]
[1770043990182,4.10375859,104.35,104.31,8.84954642]
[1770043990481,4.10375859,104.35,104.3,26.24226324]
[1770043990675,4.10375859,104.34,104.3,17.39271682]
[1770043990985,4.10375859,104.34,104.3,26.24226324]
[1770043991517,4.10375859,104.37,104.32,8.84954642]
[1770043992377,4.10375859,104.36,104.31,8.84954642]
[1770043992700,12.95330501,104.35,104.3,26.24226324]
[1770043992871,4.10375859,104.35,104.3,26.24226324]
[1770043993884,4.10375859,104.34,104.3,17.39271682]
[1770043994093,4.10375859,104.34,104.3,26.24226324]
[1770043994268,25.38375859,104.36,104.31,8.84954642]
[1770043994682,4.10375859,104.36,104.32,8.84954642]
[1770043995270,4.10375859,104.36,104.31,8.84954642]
[1770043995594,4.10375859,104.36,104.32,8.84954642]
[1770043996315,12.95330501,104.38,104.33,8.84954642]
[1770043996478,4.10375859,104.4,104.36,8.84954642]
[1770043996973,4.10375859,104.42,104.38,8.84954642]
[1770043997305,4.10375859,104.44,104.41,8.84954642]
[1770043997680,4.10375859,104.46,104.41,8.84954642]
[1770043998291,4.10375859,104.45,104.4,8.84954642]
[1770043999090,4.10375859,104.45,104.41,8.84954642]
[1770043999302,8.84954642,104.47,104.42,8.84954642]
[1770043999303,4.10375859,104.47,104.42,8.84954642]
[1770043999802,4.38221509,104.45,104.41,8.84954642]
[1770043999998,4.38221509,104.44,104.39,8.84954642]
[1770044000203,4.38221509,104.44,104.4,8.84954642]
[1770044000407,4.38221509,104.44,104.39,8.84954642]
[1770044000578,4.38221509,104.44,104.4,8.84954642]
[1770044001500,4.38221509,104.44,104.38,4.45820443]
[1770044001708,4.38221509,104.43,104.39,8.84954642]
[1770044001885,4.38221509,104.43,104.4,8.84954642]
[1770044002077,4.38221509,104.45,104.41,8.84954642]
[1770044002274,4.38221509,104.45,104.4,8.84954642]
[1770044002678,4.38221509,104.44,104.39,8.84954642]
[1770044002893,4.38221509,104.43,104.38,8.84954642]
[1770044003600,4.38221509,104.42,104.38,8.84954642]
[1770044003783,4.38221509,104.41,104.36,8.84954642]
[1770044003991,4.38221509,104.4,104.35,8.84954642]
[1770044004191,4.38221509,104.38,104.33,13.30775085]
[1770044004496,4.38221509,104.38,104.34,8.84954642]
[1770044005300,4.38221509,104.38,104.33,13.30775085]
[1770044005875,4.38221509,104.38,104.3,26.98008428]
[1770044005876,4.38221509,104.37,104.3,26.98008428]
[1770044006080,4.38221509,104.36,104.31,8.84954642]
[1770044006298,4.38221509,104.35,104.31,8.84954642]
[1770044006597,4.38221509,104.34,104.3,26.24226324]
[1770044006799,4.38221509,104.34,104.3,17.39271682]
[1770044006800,4.38221509,104.33,104.3,17.39271682]
[1770044006991,4.38221509,104.33,104.29,8.84954642]
[1770044007497,4.38221509,104.35,104.31,8.84954642]
[1770044007890,4.38221509,104.35,104.29,14.04671374]
[1770044007891,4.38221509,104.35,104.3,8.84954642]
[1770044008084,4.38221509,104.35,104.31,8.84954642]
[1770044008284,4.38221509,104.35,104.29,4.45820443]
[1770044008285,4.38221509,104.35,104.3,8.84954642]
[1770044008486,4.38221509,104.35,104.31,8.84954642]
[1770044008887,4.38221509,104.35,104.3,8.84954642]
[1770044009091,4.38221509,104.35,104.31,8.84954642]
[1770044010304,4.38221509,104.37,104.32,8.84954642]
[1770044011312,4.38221509,104.37,104.34,8.84954642]
[1770044011616,4.38221509,104.37,104.33,8.84954642]
[1770044012110,4.38221509,104.37,104.32,13.30775085]
[1770044012317,4.38221509,104.37,104.33,8.84954642]
[1770044012603,4.38221509,104.39,104.34,8.84954642]
[1770044013002,4.38221509,104.38,104.34,8.84954642]
[1770044013195,4.38221509,104.38,104.33,8.84954642]
[1770044013396,4.38221509,104.38,104.34,8.84954642]
[1770044013597,30.14954642,104.4,104.34,8.84954642]
[1770044013598,4.38221509,104.4,104.36,8.84954642]
[1770044013798,4.38221509,104.4,104.37,8.84954642]
[1770044014208,4.38221509,104.4,104.36,8.84954642]
[1770044016400,4.38221509,104.4,104.36,8.8305653]
[1770044016800,4.38221509,104.4,104.37,8.8305653]
[1770044017309,4.38221509,104.42,104.37,8.8305653]
[1770044017611,4.38221509,104.42,104.38,8.8305653]
[1770044017816,4.38221509,104.42,104.35,14.0411737]
[1770044017817,4.38221509,104.4,104.35,8.8305653]
[1770044018594,4.38221509,104.39,104.32,4.45820443]
[1770044018923,4.38221509,104.38,104.33,8.8305653]
[1770044019096,4.38221509,104.4,104.35,8.8305653]
[1770044019295,4.38221509,104.4,104.36,8.8305653]
[1770044019943,4.38221509,104.42,104.36,13.28876973]
[1770044020217,4.38221509,104.42,104.37,8.8305653]
[1770044020416,4.38221509,104.41,104.36,8.8305653]
[1770044020626,4.38221509,104.4,104.36,8.8305653]
[1770044020994,4.38221509,104.4,104.37,8.8305653]
[1770044021194,4.38221509,104.42,104.38,8.8305653]
[1770044021607,4.38221509,104.42,104.39,8.8305653]
[1770044021907,4.38221509,104.42,104.4,8.8305653]
[1770044022214,9.38962205,104.48,104.42,4.45820443]
[1770044022417,4.38221509,104.48,104.44,8.8305653]
[1770044023095,4.38221509,104.48,104.42,14.03442422]
[1770044023302,4.38221509,104.5,104.45,8.8305653]
[1770044023613,4.38221509,104.5,104.46,8.8305653]
[1770044023996,4.38221509,104.52,104.47,8.8305653]
[1770044024215,4.38221509,104.52,104.49,8.8305653]
[1770044024513,4.38221509,104.52,104.48,8.8305653]
[1770044025010,4.38221509,104.52,104.47,13.28876973]
[1770044025315,4.38221509,104.52,104.48,8.8305653]
[1770044025711,4.38221509,104.52,104.47,13.28876973]
[1770044026093,4.38221509,104.52,104.48,8.8305653]
[1770044026995,4.38221509,104.51,104.47,8.8305653]
[1770044027194,4.38221509,104.49,104.44,8.8305653]
[1770044027402,4.38221509,104.48,104.43,8.8305653]
[1770044027602,13.21278039,104.48,104.43,8.8305653]
[1770044027804,4.38221509,104.48,104.43,8.8305653]
[1770044028008,4.38221509,104.48,104.44,8.8305653]
[1770044028210,4.38221509,104.48,104.43,8.8305653]
[1770044028703,4.38221509,104.48,104.44,8.8305653]
[1770044028896,4.38221509,104.48,104.39,8.4619272]
[1770044029116,4.29850577,104.45,104.41,8.8305653]
[1770044029501,4.29850577,104.47,104.42,8.8305653]
[1770044029893,4.31015265,104.49,104.45,8.8305653]
[1770044030299,13.14071795,104.49,104.44,13.28820826]
[1770044030598,4.31015265,104.48,104.43,8.8305653]
[1770044030796,13.14071795,104.48,104.43,8.8305653]
[1770044031011,4.31015265,104.47,104.43,8.8305653]
[1770044031924,4.31015265,104.47,104.44,8.8305653]
[1770044032219,4.31015265,104.46,104.41,8.8305653]
[1770044033216,13.14071795,104.44,104.39,13.28820826]
[1770044033421,4.31015265,104.42,104.38,8.8305653]
[1770044033809,4.31015265,104.42,104.37,13.28820826]
[1770044034011,4.31015265,104.41,104.36,26.62]
[1770044034204,4.31015265,104.41,104.36,18.41266172]
[1770044035123,13.14071795,104.43,104.38,8.8305653]
[1770044035423,4.31015265,104.41,104.36,8.8305653]
[1770044035625,4.31015265,104.41,104.36,13.28820826]
[1770044035922,8.8305653,104.42,104.36,14.03960046]
[1770044035923,4.31015265,104.42,104.36,14.03960046]
[1770044036121,4.31015265,104.42,104.37,8.8305653]
[1770044036314,4.31015265,104.42,104.38,8.8305653]
[1770044036708,4.31015265,104.42,104.37,4.45764296]
[1770044037016,4.31015265,104.42,104.39,8.8305653]
[1770044037208,4.31015265,104.42,104.38,8.8305653]
[1770044037826,13.14071795,104.44,104.38,22.86846658]
[1770044038024,13.14071795,104.44,104.39,8.8305653]
[1770044038320,13.14071795,104.46,104.41,13.28820826]
[1770044038526,4.31015265,104.46,104.41,13.28820826]
[1770044038703,13.14071795,104.48,104.42,13.28820826]
[1770044038901,4.31015265,104.48,104.43,8.8305653]
[1770044039100,4.31015265,104.48,104.44,8.8305653]
[1770044039515,4.31015265,104.48,104.43,13.28820826]
[1770044039711,13.14071795,104.48,104.43,13.28820826]
[1770044039905,4.31015265,104.46,104.41,13.28820826]
[1770044040109,4.31015265,104.46,104.41,22.8657749]
[1770044040407,4.31015265,104.46,104.41,13.28820826]
[1770044040608,4.31015265,104.46,104.41,4.45764296]
[1770044040830,4.31015265,104.46,104.41,13.28820826]
[1770044041127,4.31015265,104.46,104.42,8.8305653]
[1770044041622,13.10583615,104.51,104.4,9.86238994]
[1770044041623,4.31015265,104.44,104.4,8.8305653]
[1770044041826,4.31015265,104.44,104.39,13.28820826]
[1770044042026,13.14071795,104.43,104.37,31.07764296]
[1770044042206,13.14071795,104.41,104.36,8.8305653]
[1770044042406,13.14071795,104.4,104.35,4.45764296]
[1770044042612,13.14071795,104.42,104.37,8.8305653]
[1770044042823,8.8305653,104.41,104.36,13.28820826]
[1770044043127,13.14071795,104.42,104.36,13.28820826]
[1770044043426,4.31015265,104.42,104.37,8.8305653]
[1770044043614,4.31015265,104.42,104.37,13.28820826]
[1770044043811,4.31015265,104.44,104.39,8.8305653]
[1770044044016,4.31015265,104.44,104.38,4.45764296]
[1770044044017,13.14071795,104.43,104.38,13.28820826]
[1770044044529,4.31015265,104.42,104.37,8.8305653]
[1770044045437,4.31015265,104.41,104.36,13.28820826]
[1770044045640,4.31015265,104.41,104.37,8.8305653]
[1770044045928,4.31015265,104.4,104.35,8.8305653]
[1770044046123,4.31015265,104.4,104.35,13.28820826]
[1770044046715,4.31015265,104.4,104.35,4.45764296]
[1770044046914,4.31015265,104.4,104.35,13.28820826]
[1770044047231,4.31015265,104.35,104.29,8.8305653]
[1770044047410,4.31015265,104.32,104.27,0.2]
[1770044047931,4.31015265,104.32,104.27,9.0305653]
[1770044048136,4.31015265,104.32,104.27,0.2]
[1770044048329,4.31015265,104.32,104.27,9.0305653]
[1770044048534,4.31015265,104.31,104.27,0.2]
[1770044048737,4.31015265,104.3,104.27,0.2]
[1770044049052,4.31015265,104.28,104.24,0.2]
[1770044049344,4.31015265,104.27,104.24,0.2]
[1770044049635,13.14071795,104.29,104.24,9.0305653]
[1770044049835,4.31015265,104.29,104.25,8.8305653]
[1770044050023,13.14071795,104.31,104.25,13.28820826]
[1770044050341,4.31015265,104.29,104.24,0.2]
[1770044050545,13.14071795,104.28,104.24,0.2]
[1770044051025,4.31015265,104.3,104.24,4.65764296]
[1770044051227,13.14071795,104.31,104.25,4.45764296]
[1770044051416,13.14071795,104.31,104.25,13.28820826]
[1770044051619,8.8305653,104.29,104.24,0.2]
[1770044051819,8.8305653,104.29,104.24,4.65764296]
[1770044052215,4.31015265,104.3,104.25,13.28820826]
[1770044052443,13.14071795,104.3,104.25,13.28820826]
[1770044052639,13.14071795,104.3,104.25,4.45764296]
[1770044052821,8.8305653,104.28,104.24,0.2]
[1770044053316,4.31015265,104.29,104.24,13.48820826]
[1770044053317,13.14071795,104.29,104.24,13.48820826]
[1770044053741,13.14071795,104.29,104.24,4.65764296]
[1770044054623,13.14071795,104.28,104.24,0.2]
[1770044055141,8.8305653,104.3,104.25,4.45764296]
[1770044055347,13.14071795,104.3,104.25,13.28820826]
[1770044055934,13.14071795,104.32,104.27,13.28820826]
[1770044056134,4.31015265,104.34,104.29,13.28820826]
[1770044056442,13.14071795,104.35,104.3,4.45764296]
[1770044056635,13.14071795,104.35,104.29,18.41858418]
[1770044056636,13.14071795,104.34,104.28,13.5725314]
[1770044056945,13.14071795,104.33,104.28,13.28820826]
[1770044057151,21.24,104.38,104.3,4.45764296]
[1770044057152,13.14071795,104.35,104.3,4.45764296]
[1770044057451,13.14071795,104.36,104.31,13.28820826]
[1770044057663,13.14071795,104.37,104.32,13.28820826]
[1770044057840,13.14071795,104.37,104.31,8.8305653]
[1770044058252,8.8305653,104.38,104.33,18.41553606]
[1770044058564,13.14071795,104.42,104.37,8.8305653]
[1770044058859,8.8305653,104.51,104.37,8.8305653]
[1770044058860,13.14071795,104.48,104.42,4.45764296]
[1770044059159,13.14071795,104.48,104.43,8.8305653]
[1770044059376,13.14071795,104.5,104.44,13.28820826]
[1770044059555,4.31015265,104.53,104.48,8.8305653]
[1770044059742,13.14071795,104.54,104.48,13.28820826]
[1770044059932,13.13914497,104.51,104.46,4.31605893]
[1770044060136,8.8305653,104.49,104.45,26.64]
[1770044060331,4.30857967,104.48,104.45,26.64]
[1770044060537,8.8305653,104.46,104.42,4.31605893]
[1770044060846,13.13914497,104.47,104.42,4.31605893]
[1770044061144,13.13914497,104.47,104.42,22.72314385]
[1770044061342,13.13914497,104.47,104.42,4.31605893]
[1770044061929,8.8305653,104.46,104.42,4.31605893]
[1770044062330,8.8305653,104.46,104.41,8.8305653]
[1770044062538,13.13914497,104.46,104.4,49.36486835]
[1770044063056,13.13914497,104.46,104.41,18.40796525]
[1770044063258,8.8305653,104.47,104.42,9.57669281]
[1770044063474,8.8305653,104.46,104.41,13.89343487]
[1770044063763,13.13914497,104.46,104.41,4.31605893]
[1770044064557,4.30857967,104.46,104.41,22.72378275]
[1770044064860,13.13914497,104.46,104.41,13.89321745]
[1770044065057,13.13914497,104.46,104.4,45.0487838]
[1770044065350,30.0505653,104.51,104.41,22.72402629]
[1770044065351,13.13914497,104.47,104.41,22.72402629]
[1770044065560,4.30857967,104.46,104.41,22.72402629]
[1770044065766,13.13914497,104.47,104.41,22.72402629]
[1770044065937,4.30857967,104.47,104.42,13.14662423]
[1770044066541,13.13914497,104.47,104.42,4.31605893]
[1770044066739,4.30857967,104.47,104.42,22.72305883]
[1770044067465,4.30857967,104.45,104.4,39.78662423]
[1770044068048,13.13914497,104.45,104.4,49.36494564]
[1770044068253,4.30857967,104.45,104.4,39.78662423]
[1770044068461,13.13914497,104.45,104.4,30.95605893]
[1770044068654,13.13914497,104.45,104.4,39.78662423]
[1770044068876,4.30857967,104.44,104.4,26.64]
[1770044069178,13.13914497,104.46,104.41,8.8305653]
[1770044069353,4.30857967,104.45,104.4,39.78662423]
[1770044070176,13.13914497,104.44,104.4,26.64]
[1770044070394,4.30857967,104.41,104.36,13.14662423]
[1770044070554,13.13914497,104.43,104.37,13.14662423]
[1770044070753,4.30857967,104.42,104.37,22.7276932]
[1770044071169,13.13914497,104.44,104.38,13.14662423]
[1770044071360,4.30857967,104.44,104.39,8.8305653]
[1770044071753,4.30857967,104.41,104.35,26.62]
[1770044071976,13.13914497,104.43,104.38,8.8305653]
[1770044072178,4.30857967,104.43,104.38,8.8305653]
[1770044072479,4.30857967,104.43,104.39,8.8305653]
[1770044073167,4.30857967,104.43,104.38,9.11488844]
[1770044073475,13.13914497,104.43,104.37,22.72787167]
[1770044073680,4.30857967,104.42,104.37,13.14662423]
[1770044073980,4.30857967,104.41,104.36,13.14662423]
[1770044074272,13.13914497,104.41,104.36,4.31605893]
[1770044074654,8.8305653,104.44,104.35,35.4505653]
[1770044074655,13.13914497,104.4,104.35,35.4505653]
[1770044075076,4.30857967,104.38,104.35,26.62]
[1770044075257,4.30857967,104.37,104.33,8.8305653]
[1770044075573,4.30857967,104.36,104.31,35.4505653]
[1770044075752,13.13914497,104.36,104.31,35.4505653]
[1770044075955,4.30857967,104.36,104.31,39.76662423]
[1770044076163,13.13914497,104.36,104.31,30.93605893]
[1770044076357,13.13914497,104.36,104.31,39.76662423]
[1770044076564,4.30857967,104.36,104.32,8.8305653]
[1770044076780,8.8305653,104.38,104.33,8.8305653]
[1770044076979,8.8305653,104.38,104.32,22.73233947]
[1770044077160,8.8305653,104.38,104.33,8.8305653]